fUST/lending_fUST_20250716
["ID","MTS","AMOUNT","RATE_DAILY","PERIOD"]
[372381982,1752619843272,-460.0,0.00019452,2]
[372381984,1752619843282,-460.0,0.00019452,2]
[372381986,1752619843291,-460.0,0.00019452,2]
[372381988,1752619843300,-460.0,0.00019452,2]
[372381990,1752619843310,-460.0,0.00019452,2]
[372381992,1752619843319,-460.0,0.00019452,2]
[372381994,1752619843329,-460.0,0.00019452,2]
[372381996,1752619843339,-460.0,0.00019452,2]
[372381998,1752619843348,-460.0,0.00019452,2]
[372382000,1752619843358,-460.0,0.00019452,2]
[372382002,1752619843367,-460.0,0.00019452,2]
[372382004,1752619843376,-460.0,0.00019452,2]
[372382006,1752619843385,-460.0,0.00019452,2]
[372382008,1752619843395,-1493.09,0.00019452,2]
[372382010,1752619843405,-460.0,0.00019452,2]
[372382011,1752619843413,-460.0,0.00019452,2]
[372382012,1752619843423,-460.0,0.00019452,2]
[372382013,1752619843432,-3052.06,0.00019452,2]
[372382014,1752619843441,-460.0,0.00019452,2]
[372382015,1752619843450,-460.0,0.00019452,2]
[372382016,1752619843459,-460.67570846,0.00019452,2]
[372382017,1752619843468,-462.65100743,0.00019452,2]
[372382018,1752619843478,-460.0,0.00019452,2]
[372382019,1752619843487,-779.46,0.00019452,2]
[372382020,1752619843496,-460.0,0.00019452,2]
[372382021,1752619843505,-460.0,0.00019452,2]
[372382022,1752619843514,-460.0,0.00019452,2]
[372382023,1752619843523,-584.49,0.00019452,2]
[372382024,1752619843533,-460.0,0.00019452,2]
[372382025,1752619843542,-460.0,0.00019452,2]
[372382026,1752619843553,-460.0,0.00019452,2]
[372382027,1752619843562,-460.0,0.00019452,2]
[372382029,1752619843571,-460.0,0.00019452,2]
[372382031,1752619843581,-460.0,0.00019452,2]
[372382033,1752619843591,-611.81,0.00019452,2]
[372382035,1752619843600,-460.0,0.00019452,2]
[372382037,1752619843609,-460.0,0.00019452,2]
[372382039,1752619843618,-460.0,0.00019452,2]
[372382041,1752619843628,-460.0,0.00019452,2]
[372382043,1752619843638,-460.0,0.00019452,2]
[372382044,1752619843647,-460.0,0.00019452,2]
[372382046,1752619843657,-460.0,0.00019452,2]
[372382049,1752619843666,-460.0,0.00019452,2]
[372382050,1752619843675,-460.0,0.00019452,2]
[372382052,1752619843685,-460.0,0.00019452,2]
[372382054,1752619843696,-460.0,0.00019452,2]
[372382057,1752619843705,-504.01872942,0.00019473,2]
[372382058,1752619843715,-500.0,0.00019473,2]
[372382060,1752619843724,-151.0,0.00019473,2]
[372382062,1752619843733,-984.38065841,0.0001948,2]
[372382064,1752619843742,-500.0,0.00019721,2]
[372382066,1752619843752,-1000.0,0.00019721,2]
[372382069,1752619843762,-500.0,0.00019721,2]
[372382070,1752619843771,-256.99765276,0.00019721,2]
[372382072,1752619843781,-500.0,0.00019721,2]
[372382074,1752619843790,-279.83961309,0.00019721,2]
[372382077,1752619843800,-1000.0,0.00019721,2]
[372382079,1752619843810,-460.0,0.00019726,2]
[372382081,1752619843819,-460.0,0.00019726,2]
[372382083,1752619843829,-151.0,0.00019726,2]
[372382085,1752619843838,-151.0,0.00019726,2]
[372382087,1752619843848,-177.63303,0.00019726,2]
[372382089,1752619843857,-460.0,0.00019726,2]
[372382090,1752619843867,-460.0,0.00019726,2]
[372382092,1752619843876,-460.0,0.00019726,2]
[372382095,1752619843886,-460.0,0.00019726,2]
[372382097,1752619843896,-565.96,0.00019726,2]
[372382098,1752619843905,-460.0,0.00019726,2]
[372382101,1752619843915,-362.18410458,0.00019726,2]
[372382102,1752619843924,-240.0,0.00019726,2]
[372382104,1752619843933,-460.0,0.00019726,2]
[372382106,1752619843943,-460.0,0.00019726,2]
[372382109,1752619843953,-460.0,0.00019726,2]
[372382111,1752619843962,-460.0,0.00019726,2]
[372382113,1752619843972,-460.0,0.00019726,2]
[372382115,1752619843981,-460.0,0.00019726,2]
[372382117,1752619843991,-460.0,0.00019726,2]
[372382119,1752619844000,-281.42296728,0.00019726,2]
[372382121,1752619844009,-460.0,0.00019726,2]
[372382122,1752619844018,-460.0,0.00019726,2]
[372382124,1752619844028,-460.0,0.00019726,2]
[372382127,1752619844037,-460.0,0.00019726,2]
[372382129,1752619844047,-460.0,0.00019726,2]
[372382130,1752619844056,-460.0,0.00019726,2]
[372382132,1752619844066,-167.19187342,0.00019726,2]
[372382134,1752619844075,-460.0,0.00019726,2]
[372382136,1752619844084,-289.79576107,0.00019726,2]
[372382138,1752619844093,-460.0,0.00019726,2]
[372382140,1752619844102,-460.0,0.00019726,2]
[372382142,1752619844112,-460.0,0.00019726,2]
[372382144,1752619844121,-399.02284758,0.00019726,2]
[372382146,1752619844130,-460.0,0.00019726,2]
[372382148,1752619844139,-460.0,0.00019726,2]
[372382150,1752619844149,-460.0,0.00019726,2]
[372382152,1752619844158,-460.0,0.00019726,2]
[372382154,1752619844168,-470.19602813,0.00019726,2]
[372382156,1752619844178,-460.0,0.00019726,2]
[372382158,1752619844187,-460.0,0.00019726,2]
[372382160,1752619844197,-460.0,0.00019726,2]
[372382162,1752619844206,-364.08,0.00019726,2]
[372382164,1752619844215,-460.0,0.00019726,2]
[372382166,1752619844225,-460.0,0.00019726,2]
[372382168,1752619844234,-460.0,0.00019726,2]
[372382170,1752619844244,-460.0,0.00019726,2]
[372382172,1752619844253,-460.0,0.00019726,2]
[372382174,1752619844263,-460.0,0.00019726,2]
[372382176,1752619844272,-460.0,0.00019726,2]
[372382178,1752619844282,-460.0,0.00019726,2]
[372382180,1752619844291,-583.30112813,0.00019726,2]
[372382182,1752619844300,-460.0,0.00019726,2]
[372382184,1752619844310,-521.23,0.00019726,2]
[372382186,1752619844319,-460.0,0.00019726,2]
[372382188,1752619844328,-460.0,0.00019726,2]
[372382190,1752619844338,-460.0,0.00019726,2]
[372382192,1752619844347,-460.0,0.00019726,2]
[372382194,1752619844357,-460.0,0.00019726,2]
[372382196,1752619844366,-3211.6,0.00019726,2]
[372382198,1752619844375,-460.0,0.00019726,2]
[372382200,1752619844385,-460.0,0.00019726,2]
[372382202,1752619844395,-460.0,0.00019726,2]
[372382204,1752619844404,-502.59,0.00019726,2]
[372382206,1752619844414,-460.0,0.00019726,2]
[372382208,1752619844423,-460.0,0.00019726,2]
[372382210,1752619844433,-280.99292299,0.00019726,2]
[372382212,1752619844442,-460.0,0.00019726,2]
[372382214,1752619844451,-812.5,0.00019726,2]
[372382216,1752619844462,-460.0,0.00019726,2]
[372382218,1752619844472,-460.0,0.00019726,2]
[372382220,1752619844481,-460.0,0.00019726,2]
[372382222,1752619844492,-460.0,0.00019726,2]
[372382224,1752619844502,-460.0,0.00019726,2]
[372382226,1752619844512,-460.0,0.00019726,2]
[372382228,1752619844522,-3534.76,0.00019726,2]
[372382230,1752619844531,-465.48192467,0.00019726,2]
[372382232,1752619844541,-460.0,0.00019726,2]
[372382234,1752619844553,-460.0,0.00019726,2]
[372382236,1752619844563,-460.0,0.00019726,2]
[372382238,1752619844572,-460.0,0.00019726,2]
[372382240,1752619844583,-460.0,0.00019726,2]
[372382242,1752619844593,-460.0,0.00019726,2]
[372382244,1752619844602,-574.18635365,0.00019726,2]
[372382246,1752619844611,-460.0,0.00019726,2]
[372382248,1752619844620,-1980.25,0.00019726,2]
[372382250,1752619844629,-460.0,0.00019726,2]
[372382252,1752619844639,-460.0,0.00019726,2]
[372382254,1752619844648,-460.0,0.00019726,2]
[372382255,1752619844657,-460.0,0.00019726,2]
[372382257,1752619844667,-460.0,0.00019726,2]
[372382259,1752619844678,-460.0,0.00019726,2]
[372382261,1752619844687,-460.0,0.00019726,2]
[372382263,1752619844696,-460.0,0.00019726,2]
[372382265,1752619844706,-1417.29,0.00019726,2]
[372382267,1752619844716,-460.0,0.00019726,2]
[372382269,1752619844725,-483.94,0.00019726,2]
[372382271,1752619844734,-460.0,0.00019726,2]
[372382273,1752619844743,-460.0,0.00019726,2]
[372382275,1752619844752,-460.0,0.00019726,2]
[372382277,1752619844762,-1366.06,0.00019726,2]
[372382279,1752619844771,-460.0,0.00019726,2]
[372382281,1752619844781,-460.0,0.00019726,2]
[372382283,1752619844790,-460.0,0.00019726,2]
[372382285,1752619844800,-460.0,0.00019726,2]
[372382287,1752619844809,-460.0,0.00019726,2]
[372382289,1752619844819,-460.0,0.00019726,2]
[372382291,1752619844830,-460.0,0.00019726,2]
[372382293,1752619844839,-872.31,0.00019726,2]
[372382295,1752619844850,-460.0,0.00019726,2]
[372382298,1752619844860,-505.77,0.00019726,2]
[372382299,1752619844870,-460.0,0.00019726,2]
[372382301,1752619844880,-460.0,0.00019726,2]
[372382304,1752619844890,-460.0,0.00019726,2]
[372382306,1752619844900,-460.0,0.00019726,2]
[372382307,1752619844909,-460.0,0.00019726,2]
[372382309,1752619844919,-460.0,0.00019726,2]
[372382312,1752619844929,-460.0,0.00019726,2]
[372382314,1752619844938,-460.0,0.00019726,2]
[372382316,1752619844948,-460.0,0.00019726,2]
[372382325,1752619845032,-460.0,0.00019726,2]
[372382327,1752619845042,-1182.92,0.00019726,2]
[372382330,1752619845052,-460.0,0.00019726,2]
[372382332,1752619845062,-460.0,0.00019726,2]
[372382334,1752619845071,-460.0,0.00019726,2]
[372382336,1752619845080,-460.0,0.00019726,2]
[372382338,1752619845090,-460.0,0.00019726,2]
[372382340,1752619845099,-460.0,0.00019726,2]
[372382342,1752619845108,-460.0,0.00019726,2]
[372382344,1752619845118,-460.0,0.00019726,2]
[372382345,1752619845130,-460.0,0.00019726,2]
[372382347,1752619845140,-460.0,0.00019726,2]
[372382350,1752619845149,-1493.09,0.00019726,2]
[372382352,1752619845159,-460.0,0.00019726,2]
[372382354,1752619845170,-460.0,0.00019726,2]
[372382356,1752619845179,-3052.06,0.00019726,2]
[372382358,1752619845189,-460.0,0.00019726,2]
[372382359,1752619845198,-460.0,0.00019726,2]
[372382362,1752619845207,-460.0,0.00019726,2]
[372382364,1752619845217,-779.46,0.00019726,2]
[372382366,1752619845227,-460.0,0.00019726,2]
[372382368,1752619845236,-460.0,0.00019726,2]
[372382370,1752619845246,-584.49,0.00019726,2]
[372382372,1752619845255,-460.0,0.00019726,2]
[372382374,1752619845264,-460.0,0.00019726,2]
[372382376,1752619845274,-472.9609711,0.00019726,2]
[372382378,1752619845284,-460.0,0.00019726,2]
[372382380,1752619845293,-611.81,0.00019726,2]
[372382382,1752619845303,-460.0,0.00019726,2]
[372382384,1752619845312,-460.0,0.00019726,2]
[372382386,1752619845322,-460.0,0.00019726,2]
[372382388,1752619845330,-460.0,0.00019726,2]
[372382390,1752619845339,-460.0,0.00019726,2]
[372382392,1752619845349,-460.0,0.00019726,2]
[372382393,1752619845359,-460.0,0.00019726,2]
[372382395,1752619845368,-460.0,0.00019726,2]
[372382397,1752619845377,-460.0,0.00019726,2]
[372382400,1752619845387,-501.86520861,0.00019773,2]
[372382402,1752619845397,-500.0,0.00019773,2]
[372382404,1752619845407,-500.0,0.00019773,2]
[372382406,1752619845416,-500.0,0.00019773,2]
[372382408,1752619845425,-500.0,0.00019773,2]
[372382410,1752619845434,-502.44996152,0.00019773,2]
[372382412,1752619845444,-613.77051335,0.00019773,2]
[372382413,1752619845453,-500.0,0.00019773,2]
[372382415,1752619845462,-500.0,0.00019773,2]
[372382417,1752619845471,-500.0,0.00019773,2]
[372382419,1752619845481,-500.0,0.00019773,2]
[372382421,1752619845489,-500.0,0.00019773,2]
[372382423,1752619845499,-500.0,0.00019773,2]
[372382425,1752619845508,-681.33394769,0.00019886,2]
[372382427,1752619845518,-460.0,0.0002,2]
[372382430,1752619845528,-460.0,0.0002,2]
[372382432,1752619845539,-274.53,0.0002,2]
[372382434,1752619845550,-460.0,0.0002,2]
[372382436,1752619845560,-286.29536758,0.0002,2]
[372382438,1752619845570,-460.0,0.0002,2]
[372382440,1752619845579,-460.0,0.0002,2]
[372382442,1752619845589,-156.83496223,0.0002,2]
[372382444,1752619845598,-460.0,0.0002,2]
[372382446,1752619845607,-460.0,0.0002,2]
[372382448,1752619845616,-460.0,0.0002,2]
[372382450,1752619845626,-460.0,0.0002,2]
[372382452,1752619845636,-460.0,0.0002,2]
[372382454,1752619845646,-460.0,0.0002,2]
[372382456,1752619845657,-460.0,0.0002,2]
[372382459,1752619845666,-460.0,0.0002,2]
[372382462,1752619845675,-460.0,0.0002,2]
[372382465,1752619845686,-460.0,0.0002,2]
[372382467,1752619845695,-460.0,0.0002,2]
[372382470,1752619845704,-460.0,0.0002,2]
[372382472,1752619845714,-201.23550453,0.0002,2]
[372382474,1752619845723,-460.0,0.0002,2]
[372382476,1752619845732,-521.23,0.0002,2]
[372382478,1752619845741,-460.0,0.0002,2]
[372382480,1752619845750,-3211.6,0.0002,2]
[372382482,1752619845760,-460.0,0.0002,2]
[372382484,1752619845770,-502.59,0.0002,2]
[372382486,1752619845779,-460.0,0.0002,2]
[372382488,1752619845788,-812.5,0.0002,2]
[372382490,1752619845797,-460.0,0.0002,2]
[372382492,1752619845807,-460.0,0.0002,2]
[372382494,1752619845816,-460.0,0.0002,2]
[372382496,1752619845825,-460.0,0.0002,2]
[372382498,1752619845835,-191.628111,0.0002,2]
[372382500,1752619845845,-3534.76,0.0002,2]
[372382502,1752619845854,-460.0,0.0002,2]
[372382504,1752619845864,-460.0,0.0002,2]
[372382506,1752619845879,-460.0,0.0002,2]
[372382507,1752619845890,-460.0,0.0002,2]
[372382508,1752619845900,-460.0,0.0002,2]
[372382509,1752619845909,-460.0,0.0002,2]
[372382510,1752619845919,-1980.25,0.0002,2]
[372382511,1752619845929,-460.0,0.0002,2]
[372382512,1752619845938,-460.0,0.0002,2]
[372382513,1752619845952,-271.35874253,0.0002,2]
[372382514,1752619845967,-460.0,0.0002,2]
[372382515,1752619845976,-460.0,0.0002,2]
[372382516,1752619845986,-460.0,0.0002,2]
[372382517,1752619845995,-1417.29,0.0002,2]
[372382518,1752619846005,-216.94396209,0.0002,2]
[372382519,1752619846015,-460.0,0.0002,2]
[372382520,1752619846025,-532.92,0.0002,2]
[372382521,1752619846034,-1366.06,0.0002,2]
[372382522,1752619846044,-460.0,0.0002,2]
[372382523,1752619846054,-460.0,0.0002,2]
[372382524,1752619846064,-460.0,0.0002,2]
[372382525,1752619846073,-460.0,0.0002,2]
[372382526,1752619846083,-460.0,0.0002,2]
[372382527,1752619846093,-460.0,0.0002,2]
[372382528,1752619846103,-872.31,0.0002,2]
[372382529,1752619846112,-460.0,0.0002,2]
[372382530,1752619846122,-311.8772773,0.0002,2]
[372382531,1752619846131,-460.0,0.0002,2]
[372382532,1752619846141,-460.0,0.0002,2]
[372382533,1752619846151,-460.0,0.0002,2]
[372382534,1752619846161,-460.0,0.0002,2]
[372382535,1752619846170,-460.0,0.0002,2]
[372382536,1752619846179,-460.0,0.0002,2]
[372382537,1752619846189,-460.0,0.0002,2]
[372382538,1752619846198,-1182.92,0.0002,2]
[372382539,1752619846208,-460.0,0.0002,2]
[372382540,1752619846217,-460.0,0.0002,2]
[372382541,1752619846226,-460.0,0.0002,2]
[372382542,1752619846236,-460.0,0.0002,2]
[372382544,1752619846245,-460.0,0.0002,2]
[372382545,1752619846255,-460.0,0.0002,2]
[372382547,1752619846264,-460.0,0.0002,2]
[372382549,1752619846273,-460.0,0.0002,2]
[372382551,1752619846283,-460.0,0.0002,2]
[372382553,1752619846292,-460.0,0.0002,2]
[372382555,1752619846302,-1493.09,0.0002,2]
[372382557,1752619846311,-460.0,0.0002,2]
[372382559,1752619846321,-460.0,0.0002,2]
[372382561,1752619846330,-3052.06,0.0002,2]
[372382563,1752619846339,-455.58154844,0.0002,2]
[372382565,1752619846349,-460.0,0.0002,2]
[372382567,1752619846358,-460.0,0.0002,2]
[372382569,1752619846368,-779.46,0.0002,2]
[372382571,1752619846378,-584.49,0.0002,2]
[372382573,1752619846388,-460.0,0.0002,2]
[372382575,1752619846397,-460.0,0.0002,2]
[372382577,1752619846406,-611.81,0.0002,2]
[372382579,1752619846416,-460.0,0.0002,2]
[372382581,1752619846426,-344.40595377,0.0002,2]
[372382583,1752619846435,-460.0,0.0002,2]
[372382585,1752619846445,-460.0,0.0002,2]
[372382587,1752619846454,-460.0,0.0002,2]
[372382589,1752619846463,-460.0,0.0002,2]
[372382591,1752619846474,-460.0,0.0002,2]
[372382593,1752619846483,-460.0,0.0002,2]
[372382595,1752619846493,-312.0,0.00020004,2]
[372382597,1752619846502,-1790.07201816,0.00020009,2]
[372382599,1752619846512,-151.0,0.000201,4]
[372382601,1752619846521,-500.0,0.00020172,2]
[372382603,1752619846531,-500.0,0.00020172,2]
[372382605,1752619846541,-317.788292,0.00020187,2]
[372382607,1752619846551,-375.0,0.0002022,2]
[372382609,1752619846560,-186.32308227,0.00020268,2]
[372382611,1752619846570,-1500.0,0.00020268,2]
[372382613,1752619846580,-565.95039456,0.00020273,2]
[372382615,1752619846589,-460.0,0.00020273,2]
[372382617,1752619846598,-460.0,0.00020273,2]
[372382619,1752619846607,-460.0,0.00020273,2]
[372382621,1752619846616,-460.0,0.00020273,2]
[372382623,1752619846626,-460.0,0.00020273,2]
[372382625,1752619846635,-460.0,0.00020273,2]
[372382627,1752619846644,-460.0,0.00020273,2]
[372382629,1752619846654,-460.0,0.00020273,2]
[372382639,1752619846738,-176.48,0.00020273,2]
[372382641,1752619846747,-460.0,0.00020273,2]
[372382643,1752619846758,-460.0,0.00020273,2]
[372382645,1752619846768,-460.0,0.00020273,2]
[372382647,1752619846778,-460.0,0.00020273,2]
[372382649,1752619846787,-521.23,0.00020273,2]
[372382651,1752619846797,-268.34524034,0.00020273,2]
[372382653,1752619846807,-3211.6,0.00020273,2]
[372382655,1752619846816,-460.0,0.00020273,2]
[372382657,1752619846826,-502.59,0.00020273,2]
[372382659,1752619846837,-460.0,0.00020273,2]
[372382661,1752619846858,-812.5,0.00020273,2]
[372382663,1752619846868,-460.0,0.00020273,2]
[372382665,1752619846877,-460.0,0.00020273,2]
[372382667,1752619846886,-3534.76,0.00020273,2]
[372382669,1752619846896,-460.0,0.00020273,2]
[372382671,1752619846906,-460.0,0.00020273,2]
[372382673,1752619846915,-460.0,0.00020273,2]
[372382675,1752619846925,-460.0,0.00020273,2]
[372382677,1752619846935,-460.0,0.00020273,2]
[372382679,1752619846946,-1980.25,0.00020273,2]
[372382681,1752619846955,-460.0,0.00020273,2]
[372382683,1752619846965,-460.0,0.00020273,2]
[372382685,1752619846975,-460.0,0.00020273,2]
[372382687,1752619846984,-460.0,0.00020273,2]
[372382689,1752619846994,-1417.29,0.00020273,2]
[372382691,1752619847003,-460.0,0.00020273,2]
[372382693,1752619847013,-1366.06,0.00020273,2]
[372382695,1752619847023,-460.0,0.00020273,2]
[372382697,1752619847032,-460.0,0.00020273,2]
[372382699,1752619847041,-460.0,0.00020273,2]
[372382701,1752619847051,-460.0,0.00020273,2]
[372382703,1752619847060,-460.0,0.00020273,2]
[372382705,1752619847069,-460.0,0.00020273,2]
[372382707,1752619847079,-872.31,0.00020273,2]
[372382709,1752619847088,-460.0,0.00020273,2]
[372382711,1752619847098,-460.0,0.00020273,2]
[372382714,1752619847107,-460.0,0.00020273,2]
[372382716,1752619847117,-460.0,0.00020273,2]
[372382718,1752619847127,-460.0,0.00020273,2]
[372382720,1752619847136,-460.0,0.00020273,2]
[372382722,1752619847146,-460.0,0.00020273,2]
[372382724,1752619847156,-1182.92,0.00020273,2]
[372382726,1752619847166,-460.0,0.00020273,2]
[372382728,1752619847175,-460.0,0.00020273,2]
[372382730,1752619847185,-460.0,0.00020273,2]
[372382732,1752619847194,-460.0,0.00020273,2]
[372382734,1752619847203,-460.0,0.00020273,2]
[372382736,1752619847212,-460.0,0.00020273,2]
[372382738,1752619847222,-460.0,0.00020273,2]
[372382740,1752619847231,-460.0,0.00020273,2]
[372382742,1752619847241,-1493.09,0.00020273,2]
[372382743,1752619847250,-460.0,0.00020273,2]
[372382746,1752619847267,-460.0,0.00020273,2]
[372382748,1752619847276,-3052.06,0.00020273,2]
[372382750,1752619847286,-296.26496118,0.00020273,2]
[372382752,1752619847295,-460.0,0.00020273,2]
[372382754,1752619847305,-779.46,0.00020273,2]
[372382756,1752619847314,-584.49,0.00020273,2]
[372382758,1752619847324,-460.0,0.00020273,2]
[372382760,1752619847333,-611.81,0.00020273,2]
[372382762,1752619847342,-460.0,0.00020273,2]
[372382764,1752619847351,-460.0,0.00020273,2]
[372382766,1752619847361,-460.0,0.00020273,2]
[372382768,1752619847371,-1000.0,0.00020321,2]
[372382770,1752619847380,-1000.0,0.00020321,2]
[372382773,1752619847392,-519.35936246,0.00020321,2]
[372382774,1752619847402,-160.0,0.00020471,2]
[372382777,1752619847412,-160.0,0.00020505,2]
[372382778,1752619847421,-160.0,0.00020505,2]
[372382780,1752619847430,-468.75,0.00020505,2]
[372382782,1752619847440,-12603.13032295,0.00020505,2]
[372382784,1752619847449,-520.84375,0.00020505,2]
[372382786,1752619847458,-215.50840239,0.00020505,2]
[372382788,1752619847467,-230.76969291,0.00020505,2]
[372382790,1752619847476,-160.0,0.00020505,2]
[372382792,1752619847485,-160.0,0.00020505,2]
[372382794,1752619847496,-160.0,0.00020507,2]
[372382796,1752619847505,-838.84061749,0.00020507,2]
[372382798,1752619847515,-160.0,0.00020507,2]
[372382800,1752619847524,-395.98,0.00020538,3]
[372382802,1752619847534,-228.54568651,0.00020547,2]
[372382804,1752619847546,-460.0,0.00020547,2]
[372382806,1752619847555,-460.0,0.00020547,2]
[372382808,1752619847565,-460.0,0.00020547,2]
[372382810,1752619847575,-261.46,0.00020547,2]
[372382812,1752619847584,-460.0,0.00020547,2]
[372382814,1752619847593,-460.0,0.00020547,2]
[372382816,1752619847602,-241.48933732,0.00020547,2]
[372382818,1752619847611,-460.0,0.00020547,2]
[372382820,1752619847621,-525.07,0.00020547,2]
[372382822,1752619847631,-411.78006495,0.00020547,2]
[372382824,1752619847641,-521.23,0.00020547,2]
[372382826,1752619847651,-3211.6,0.00020547,2]
[372382828,1752619847661,-460.0,0.00020547,2]
[372382830,1752619847670,-502.59,0.00020547,2]
[372382832,1752619847680,-460.0,0.00020547,2]
[372382834,1752619847690,-812.5,0.00020547,2]
[372382836,1752619847699,-460.0,0.00020547,2]
[372382838,1752619847709,-460.0,0.00020547,2]
[372382840,1752619847719,-3534.76,0.00020547,2]
[372382842,1752619847728,-460.0,0.00020547,2]
[372382844,1752619847737,-228.25,0.00020547,2]
[372382846,1752619847749,-303.77815698,0.00020547,2]
[372382848,1752619847759,-460.0,0.00020547,2]
[372382850,1752619847768,-460.0,0.00020547,2]
[372382852,1752619847778,-1980.25,0.00020547,2]
[372382854,1752619847787,-460.0,0.00020547,2]
[372382856,1752619847796,-460.0,0.00020547,2]
[372382858,1752619847806,-460.0,0.00020547,2]
[372382860,1752619847816,-460.0,0.00020547,2]
[372382862,1752619847825,-1417.29,0.00020547,2]
[372382864,1752619847835,-460.0,0.00020547,2]
[372382866,1752619847844,-1366.06,0.00020547,2]
[372382868,1752619847853,-264.13584822,0.00020547,2]
[372382870,1752619847863,-460.0,0.00020547,2]
[372382872,1752619847872,-460.0,0.00020547,2]
[372382874,1752619847881,-460.0,0.00020547,2]
[372382876,1752619847891,-460.0,0.00020547,2]
[372382878,1752619847900,-872.31,0.00020547,2]
[372382880,1752619847910,-460.0,0.00020547,2]
[372382882,1752619847919,-460.0,0.00020547,2]
[372382884,1752619847928,-460.0,0.00020547,2]
[372382886,1752619847937,-460.0,0.00020547,2]
[372382888,1752619847947,-460.0,0.00020547,2]
[372382890,1752619847956,-460.0,0.00020547,2]
[372382892,1752619847966,-460.0,0.00020547,2]
[372382894,1752619847975,-1182.92,0.00020547,2]
[372382896,1752619847984,-179.99235221,0.00020547,2]
[372382898,1752619847994,-460.0,0.00020547,2]
[372382900,1752619848003,-482.07672015,0.00020547,2]
[372382902,1752619848013,-460.0,0.00020547,2]
[372382904,1752619848023,-218.38083392,0.00020547,2]
[372382905,1752619848032,-460.0,0.00020547,2]
[372382907,1752619848042,-1493.09,0.00020547,2]
[372382909,1752619848052,-460.0,0.00020547,2]
[372382911,1752619848061,-460.0,0.00020547,2]
[372382913,1752619848071,-3052.06,0.00020547,2]
[372382915,1752619848080,-460.0,0.00020547,2]
[372382917,1752619848090,-779.46,0.00020547,2]
[372382919,1752619848099,-584.49,0.00020547,2]
[372382921,1752619848109,-460.0,0.00020547,2]
[372382923,1752619848119,-611.81,0.00020547,2]
[372382925,1752619848128,-460.0,0.00020547,2]
[372382927,1752619848143,-151.0,0.000206,3]
[372382929,1752619848156,-503.05503721,0.0002072,2]
[372382931,1752619848165,-420.0,0.00020775,2]
[372382933,1752619848175,-1680.0,0.00020777,2]
[372382935,1752619848184,-681.33394769,0.00020809,2]
[372382937,1752619848194,-2000.0,0.00020816,2]
[372382939,1752619848204,-460.0,0.00020821,2]
[372382941,1752619848214,-460.0,0.00020821,2]
[372382943,1752619848223,-460.0,0.00020821,2]
[372382945,1752619848232,-577.62,0.00020821,2]